fUST/lending_fUST_20250630
["ID","MTS","AMOUNT","RATE_DAILY","PERIOD"]
[368577323,1751213456015,-2273.88,0.00019786,2]
[368577324,1751213456025,-1592.72,0.00019786,2]
[368577325,1751213456035,-318.70914657,0.00019786,2]
[368577326,1751213456044,-1393.05,0.00019786,2]
[368577327,1751213456054,-6858.32,0.00019786,2]
[368577328,1751213456064,-2299.91,0.00019786,2]
[368577329,1751213456073,-1649.67,0.00019786,2]
[368577330,1751213456082,-336.16883824,0.00019787,2]
[368577331,1751213456092,-460.0,0.00019787,2]
[368577332,1751213456102,-460.0,0.00019787,2]
[368577333,1751213456111,-460.0,0.00019787,2]
[368577334,1751213456121,-460.0,0.00019787,2]
[368577335,1751213456131,-460.0,0.00019787,2]
[368577336,1751213456140,-159.748146,0.00019788,2]
[368577337,1751213456151,-154.401788,0.00019788,2]
[368577338,1751213456161,-151.0,0.00019788,2]
[368577339,1751213456170,-172.615559,0.00019788,2]
[368577340,1751213456180,-371.228903,0.00019788,2]
[368577341,1751213456190,-371.228903,0.00019788,2]
[368577342,1751213456199,-151.0,0.00019788,2]
[368577343,1751213456209,-460.0,0.00019796,2]
[368577344,1751213456219,-222.271437,0.00019796,2]
[368577345,1751213456228,-222.271437,0.00019796,2]
[368577346,1751213456237,-151.0,0.00019796,2]
[368577347,1751213456247,-151.0,0.00019796,2]
[368577348,1751213456256,-954.05,0.00019796,2]
[368577349,1751213456266,-151.0,0.00019796,2]
[368577350,1751213456276,-460.0,0.00019796,2]
[368577351,1751213456285,-460.0,0.00019796,2]
[368577352,1751213456295,-844.34,0.00019796,2]
[368577353,1751213456304,-196.344,0.00019796,2]
[368577354,1751213456314,-196.344,0.00019796,2]
[368577355,1751213456324,-151.0,0.00019796,2]
[368577356,1751213456334,-1863.26,0.00019796,2]
[368577357,1751213456344,-460.0,0.00019796,2]
[368577358,1751213456354,-1075.67,0.00019796,2]
[368577359,1751213456364,-1321.87,0.00019796,2]
[368577360,1751213456373,-238.611491,0.00019796,2]
[368577361,1751213456383,-238.611491,0.00019796,2]
[368577362,1751213456393,-460.0,0.00019796,2]
[368577363,1751213456402,-399.956926,0.00019796,2]
[368577364,1751213456412,-399.956926,0.00019796,2]
[368577365,1751213456422,-2266.93,0.00019796,2]
[368577366,1751213456432,-1689.29,0.00019796,2]
[368577367,1751213456444,-460.0,0.00019796,2]
[368577368,1751213456454,-632.62,0.00019796,2]
[368577369,1751213456464,-460.0,0.00019796,2]
[368577370,1751213456474,-460.0,0.00019798,2]
[368577371,1751213456484,-2416.46,0.00019798,2]
[368577372,1751213456494,-460.0,0.00019798,2]
[368577373,1751213456503,-460.0,0.00019798,2]
[368577374,1751213456513,-460.0,0.00019798,2]
[368577375,1751213456523,-460.0,0.00019798,2]
[368577376,1751213456533,-215.0738,0.00019803,2]
[368577377,1751213456542,-284.0,0.00019887,2]
[368577378,1751213456552,-504.28252098,0.0001989,2]
[368577379,1751213456563,-800.0,0.00019907,2]
[368577380,1751213456573,-6536.85938346,0.00019934,2]
[368577381,1751213456583,-151.0,0.00019935,2]
[368577382,1751213456593,-461.01939852,0.00019978,2]
[368577383,1751213456602,-1477.70593546,0.00019978,2]
[368577384,1751213456612,-1001.8969566,0.00019978,2]
[368577385,1751213456621,-1507.12065711,0.00019978,2]
[368577386,1751213456631,-284.0,0.00019987,2]
[368577387,1751213456640,-852.55930766,0.0002,2]
[368577388,1751213456649,-300.0,0.0002,2]
[368577389,1751213456659,-160.0,0.0002,3]
[368577390,1751213456669,-160.0,0.0002,3]
[368577391,1751213456678,-197092.39137674,0.0002,3]
[368577392,1751213456688,-4000.0,0.0002,4]
[368577393,1751213456697,-1044.26898975,0.00020031,2]
[368577394,1751213456707,-711.68,0.0002004,2]
[368577395,1751213456716,-770.46,0.0002004,2]
[368577396,1751213456726,-460.0,0.0002004,2]
[368577397,1751213456735,-3134.69,0.0002004,2]
[368577398,1751213456745,-579.16,0.0002004,2]
[368577399,1751213456755,-498.49564176,0.0002004,2]
[368577400,1751213456765,-460.0,0.0002004,2]
[368577401,1751213456775,-460.0,0.00020042,2]
[368577402,1751213456785,-460.0,0.00020044,2]
[368577403,1751213456795,-4547.62,0.00020044,2]
[368577404,1751213456805,-4813.95,0.00020044,2]
[368577405,1751213456815,-460.0,0.00020044,2]
[368577406,1751213456825,-990.53,0.00020044,2]
[368577407,1751213456835,-460.0,0.00020044,2]
[368577408,1751213456844,-460.0,0.00020044,2]
[368577409,1751213456854,-546.86,0.00020044,2]
[368577410,1751213456863,-4925.02,0.00020044,2]
[368577411,1751213456873,-4462.53,0.00020044,2]
[368577412,1751213456883,-4832.15,0.00020044,2]
[368577413,1751213456894,-729.64,0.00020044,2]
[368577414,1751213456905,-460.0,0.00020044,2]
[368577415,1751213456915,-460.0,0.00020044,2]
[368577416,1751213456924,-2653.8,0.00020044,2]
[368577417,1751213456935,-460.0,0.00020044,2]
[368577418,1751213456944,-460.0,0.00020053,2]
[368577419,1751213456955,-460.0,0.00020054,2]
[368577420,1751213456965,-460.0,0.00020054,2]
[368577421,1751213456976,-707.53,0.00020054,2]
[368577422,1751213456987,-792.53,0.00020054,2]
[368577423,1751213456998,-2414.73,0.00020054,2]
[368577424,1751213457007,-646.3,0.00020054,2]
[368577425,1751213457017,-475.64,0.00020054,2]
[368577426,1751213457027,-460.0,0.00020054,2]
[368577427,1751213457037,-620.0,0.00020054,2]
[368577428,1751213457047,-1064.11,0.00020054,2]
[368577429,1751213457057,-460.0,0.00020054,2]
[368577430,1751213457067,-1257.18,0.00020054,2]
[368577431,1751213457077,-460.0,0.00020054,2]
[368577432,1751213457087,-460.0,0.00020054,2]
[368577433,1751213457096,-460.0,0.00020054,2]
[368577434,1751213457106,-997.24,0.00020054,2]
[368577435,1751213457116,-696.71,0.00020054,2]
[368577436,1751213457126,-389.82,0.00020054,2]
[368577437,1751213457135,-1514.83,0.00020054,2]
[368577438,1751213457145,-383.94751407,0.00020054,2]
[368577439,1751213457154,-460.0,0.00020054,2]
[368577440,1751213457164,-704.72,0.00020054,2]
[368577441,1751213457173,-151.0,0.00020055,2]
[368577442,1751213457182,-151.0,0.00020055,2]
[368577443,1751213457192,-295.703095,0.00020055,2]
[368577444,1751213457202,-295.703095,0.00020055,2]
[368577445,1751213457212,-151.0,0.00020055,2]
[368577446,1751213457221,-151.0,0.00020055,2]
[368577447,1751213457231,-460.0,0.00020055,2]
[368577448,1751213457241,-460.0,0.00020055,2]
[368577449,1751213457251,-1715.34,0.00020055,2]
[368577450,1751213457260,-753.79,0.00020055,2]
[368577451,1751213457270,-594.48,0.00020055,2]
[368577452,1751213457279,-860.14,0.00020055,2]
[368577453,1751213457289,-460.0,0.00020055,2]
[368577454,1751213457420,-1152.83,0.00020055,2]
[368577455,1751213457430,-6011.46,0.00020055,2]
[368577456,1751213457439,-543.66,0.00020055,2]
[368577457,1751213457449,-460.0,0.00020056,2]
[368577458,1751213457459,-460.0,0.00020056,2]
[368577459,1751213457468,-566.23,0.00020059,2]
[368577460,1751213457478,-460.0,0.00020059,2]
[368577461,1751213457488,-460.0,0.00020059,2]
[368577462,1751213457498,-460.0,0.00020059,2]
[368577463,1751213457509,-513.98,0.00020059,2]
[368577464,1751213457520,-497.57,0.00020059,2]
[368577465,1751213457529,-460.0,0.00020059,2]
[368577466,1751213457539,-460.0,0.00020059,2]
[368577467,1751213457549,-460.0,0.00020059,2]
[368577468,1751213457558,-638.1,0.00020059,2]
[368577469,1751213457568,-913.1,0.00020059,2]
[368577470,1751213457578,-460.0,0.00020059,2]
[368577471,1751213457587,-472.55,0.00020059,2]
[368577472,1751213457597,-934.56,0.00020059,2]
[368577473,1751213457606,-460.0,0.00020059,2]
[368577474,1751213457616,-460.0,0.00020059,2]
[368577475,1751213457625,-994.93,0.00020059,2]
[368577476,1751213457635,-788.47,0.00020059,2]
[368577477,1751213457645,-535.69,0.00020059,2]
[368577478,1751213457654,-460.0,0.00020059,2]
[368577479,1751213457663,-720.09,0.00020059,2]
[368577480,1751213457673,-460.0,0.00020059,2]
[368577481,1751213457683,-732.67,0.00020059,2]
[368577482,1751213457692,-460.0,0.00020059,2]
[368577483,1751213457702,-3943.89,0.0002006,2]
[368577484,1751213457712,-749.97,0.0002006,2]
[368577485,1751213457721,-2273.88,0.0002006,2]
[368577486,1751213457731,-1592.72,0.0002006,2]
[368577487,1751213457741,-1393.05,0.0002006,2]
[368577488,1751213457750,-6858.32,0.0002006,2]
[368577489,1751213457760,-2299.91,0.0002006,2]
[368577490,1751213457770,-1649.67,0.0002006,2]
[368577491,1751213457780,-460.0,0.00020061,2]
[368577492,1751213457790,-460.0,0.00020061,2]
[368577493,1751213457800,-460.0,0.00020061,2]
[368577494,1751213457810,-460.0,0.00020061,2]
[368577495,1751213457821,-550.8,0.00020061,2]
[368577496,1751213457831,-151.0,0.00020062,2]
[368577497,1751213457840,-151.0,0.00020062,2]
[368577498,1751213457850,-151.0,0.00020062,2]
[368577499,1751213457860,-420.0,0.00020063,2]
[368577500,1751213457870,-407.0,0.00020063,2]
[368577501,1751213457879,-460.0,0.0002007,2]
[368577502,1751213457889,-559.454528,0.0002007,2]
[368577503,1751213457902,-559.454528,0.0002007,2]
[368577504,1751213457912,-954.05,0.0002007,2]
[368577505,1751213457922,-460.0,0.0002007,2]
[368577506,1751213457932,-460.0,0.0002007,2]
[368577507,1751213457941,-844.34,0.0002007,2]
[368577508,1751213457951,-1863.26,0.0002007,2]
[368577509,1751213457962,-460.0,0.0002007,2]
[368577510,1751213457972,-1075.67,0.0002007,2]
[368577511,1751213457982,-1321.87,0.0002007,2]
[368577512,1751213457992,-460.0,0.0002007,2]
[368577513,1751213458002,-2266.93,0.0002007,2]
[368577514,1751213458011,-1689.29,0.0002007,2]
[368577515,1751213458020,-460.0,0.0002007,2]
[368577516,1751213458030,-632.62,0.0002007,2]
[368577517,1751213458039,-460.0,0.0002007,2]
[368577518,1751213458049,-151.0,0.00020071,2]
[368577519,1751213458059,-164.610564,0.00020071,2]
[368577520,1751213458067,-2416.46,0.00020072,2]
[368577521,1751213458077,-460.0,0.00020072,2]
[368577522,1751213458086,-460.0,0.00020072,2]
[368577523,1751213458096,-460.0,0.00020072,2]
[368577524,1751213458105,-151.0,0.00020072,2]
[368577525,1751213458115,-151.0,0.00020072,2]
[368577526,1751213458124,-151.0,0.00020072,2]
[368577527,1751213458133,-151.0,0.00020072,2]
[368577528,1751213458143,-1507.15952276,0.00020074,2]
[368577529,1751213458152,-5000.0,0.00020078,2]
[368577530,1751213458162,-1500.0,0.00020081,2]
[368577531,1751213458171,-2000.0,0.00020116,2]
[368577532,1751213458181,-2000.0,0.00020116,2]
[368577533,1751213458190,-2000.0,0.00020116,2]
[368577534,1751213458200,-507.38068152,0.00020116,2]
[368577535,1751213458209,-6536.85938346,0.00020141,2]
[368577536,1751213458219,-284.0,0.00020163,2]
[368577537,1751213458228,-349.51632729,0.00020165,2]
[368577538,1751213458238,-500.0,0.00020165,2]
[368577539,1751213458247,-500.0,0.00020165,2]
[368577540,1751213458257,-500.0,0.00020165,2]
[368577541,1751213458266,-157.14764055,0.00020184,2]
[368577542,1751213458276,-253.046593,0.00020187,2]
[368577543,1751213458286,-284.0,0.00020254,2]
[368577544,1751213458297,-500.0,0.0002026,2]
[368577545,1751213458306,-711.68,0.00020314,2]
[368577546,1751213458316,-770.46,0.00020314,2]
[368577547,1751213458325,-3134.69,0.00020314,2]
[368577548,1751213458335,-579.16,0.00020314,2]
[368577549,1751213458344,-460.0,0.00020314,2]
[368577550,1751213458354,-460.0,0.00020316,2]
[368577551,1751213458363,-460.0,0.00020318,2]
[368577552,1751213458372,-4547.62,0.00020318,2]
[368577553,1751213458382,-4813.95,0.00020318,2]
[368577554,1751213458391,-460.0,0.00020318,2]
[368577555,1751213458401,-990.53,0.00020318,2]
[368577556,1751213458410,-460.0,0.00020318,2]
[368577557,1751213458420,-460.0,0.00020318,2]
[368577558,1751213458429,-546.86,0.00020318,2]
[368577559,1751213458438,-4925.02,0.00020318,2]
[368577560,1751213458448,-4462.53,0.00020318,2]
[368577562,1751213458458,-4832.15,0.00020318,2]
[368577563,1751213458467,-729.64,0.00020318,2]
[368577564,1751213458476,-460.0,0.00020318,2]
[368577565,1751213458486,-460.0,0.00020318,2]
[368577566,1751213458495,-2653.8,0.00020318,2]
[368577567,1751213458504,-460.0,0.00020318,2]
[368577568,1751213458514,-460.0,0.00020327,2]
[368577569,1751213458524,-460.0,0.00020328,2]
[368577570,1751213458533,-460.0,0.00020328,2]
[368577571,1751213458544,-707.53,0.00020328,2]
[368577572,1751213458553,-792.53,0.00020328,2]
[368577573,1751213458563,-2414.73,0.00020328,2]
[368577574,1751213458573,-646.3,0.00020328,2]
[368577575,1751213458581,-475.64,0.00020328,2]
[368577576,1751213458591,-460.0,0.00020328,2]
[368577577,1751213458601,-620.0,0.00020328,2]
[368577578,1751213458610,-1064.11,0.00020328,2]
[368577579,1751213458619,-460.0,0.00020328,2]
[368577580,1751213458630,-1257.18,0.00020328,2]
[368577581,1751213458640,-460.0,0.00020328,2]
[368577582,1751213458649,-460.0,0.00020328,2]
[368577583,1751213458659,-997.24,0.00020328,2]
[368577584,1751213458668,-696.71,0.00020328,2]
[368577585,1751213458678,-1514.83,0.00020328,2]
[368577586,1751213458687,-460.0,0.00020328,2]
[368577587,1751213458696,-704.72,0.00020328,2]
[368577588,1751213458706,-460.0,0.00020329,2]
[368577589,1751213458715,-460.0,0.00020329,2]
[368577590,1751213458724,-1715.34,0.00020329,2]
[368577591,1751213458733,-753.79,0.00020329,2]
[368577592,1751213458743,-594.48,0.00020329,2]
[368577593,1751213458752,-860.14,0.00020329,2]
[368577594,1751213458761,-460.0,0.00020329,2]
[368577595,1751213458770,-1152.83,0.00020329,2]
[368577596,1751213458780,-6011.46,0.00020329,2]
[368577597,1751213458789,-543.66,0.00020329,2]
[368577598,1751213458798,-460.0,0.0002033,2]
[368577599,1751213458807,-460.0,0.0002033,2]
[368577600,1751213458817,-566.23,0.00020333,2]
[368577601,1751213458826,-460.0,0.00020333,2]
[368577602,1751213458835,-402.55127568,0.00020333,2]
[368577603,1751213458845,-460.0,0.00020333,2]
[368577604,1751213458854,-513.98,0.00020333,2]
[368577605,1751213458863,-497.57,0.00020333,2]
[368577606,1751213458873,-460.0,0.00020333,2]
[368577607,1751213458882,-460.0,0.00020333,2]
[368577608,1751213458892,-460.0,0.00020333,2]
[368577609,1751213458905,-638.1,0.00020333,2]
[368577610,1751213458914,-913.1,0.00020333,2]
[368577611,1751213458923,-460.0,0.00020333,2]
[368577612,1751213458934,-472.55,0.00020333,2]
[368577613,1751213458944,-934.56,0.00020333,2]
[368577614,1751213458953,-255.6,0.00020333,2]
[368577615,1751213458963,-460.0,0.00020333,2]
[368577616,1751213458973,-994.93,0.00020333,2]
[368577617,1751213458983,-788.47,0.00020333,2]
[368577618,1751213458993,-535.69,0.00020333,2]
[368577619,1751213459002,-399.63,0.00020333,2]
[368577620,1751213459012,-720.09,0.00020333,2]
[368577621,1751213459021,-460.0,0.00020333,2]
[368577622,1751213459031,-732.67,0.00020333,2]
[368577623,1751213459040,-460.0,0.00020333,2]
[368577624,1751213459049,-3943.89,0.00020334,2]
[368577625,1751213459059,-749.97,0.00020334,2]
[368577626,1751213459069,-2273.88,0.00020334,2]
[368577627,1751213459078,-1592.72,0.00020334,2]
[368577628,1751213459087,-371.228903,0.00020334,2]
[368577629,1751213459096,-1393.05,0.00020334,2]
[368577630,1751213459106,-371.228903,0.00020334,2]
[368577631,1751213459115,-6858.32,0.00020334,2]
[368577632,1751213459124,-151.0,0.00020334,2]
[368577633,1751213459134,-2299.91,0.00020334,2]
[368577634,1751213459143,-1649.67,0.00020334,2]
[368577635,1751213459152,-460.0,0.00020335,2]
[368577636,1751213459162,-460.0,0.00020335,2]
[368577637,1751213459171,-460.0,0.00020335,2]
[368577638,1751213459181,-460.0,0.00020335,2]
[368577639,1751213459190,-238.611491,0.00020336,2]
[368577640,1751213459200,-238.611491,0.00020336,2]
[368577641,1751213459210,-460.0,0.00020344,2]
[368577642,1751213459219,-236.050943,0.00020344,2]
[368577643,1751213459229,-236.050943,0.00020344,2]
[368577644,1751213459238,-954.05,0.00020344,2]
[368577645,1751213459248,-460.0,0.00020344,2]
[368577646,1751213459257,-460.0,0.00020344,2]
[368577647,1751213459267,-844.34,0.00020344,2]
[368577648,1751213459276,-196.344,0.00020344,2]
[368577649,1751213459285,-196.344,0.00020344,2]
[368577650,1751213459296,-1863.26,0.00020344,2]
[368577651,1751213459308,-460.0,0.00020344,2]
[368577652,1751213459318,-1075.67,0.00020344,2]
[368577653,1751213459328,-1321.87,0.00020344,2]
[368577654,1751213459337,-460.0,0.00020344,2]
[368577655,1751213459347,-399.956926,0.00020344,2]
[368577656,1751213459357,-399.956926,0.00020344,2]
[368577657,1751213459366,-2266.93,0.00020344,2]
[368577658,1751213459376,-1689.29,0.00020344,2]
[368577659,1751213459385,-460.0,0.00020344,2]
[368577660,1751213459395,-632.62,0.00020344,2]
[368577661,1751213459404,-460.0,0.00020344,2]
[368577662,1751213459413,-2416.46,0.00020346,2]
[368577663,1751213459423,-460.0,0.00020346,2]
[368577664,1751213459432,-460.0,0.00020346,2]
[368577665,1751213459441,-460.0,0.00020346,2]
[368577666,1751213459450,-222.271437,0.00020346,2]
[368577667,1751213459459,-222.271437,0.00020346,2]
[368577668,1751213459470,-151.0,0.00020346,2]
[368577669,1751213459479,-151.0,0.00020346,2]
[368577670,1751213459488,-177.92820716,0.00020346,2]
[368577671,1751213459497,-686.713,0.00020346,2]
[368577672,1751213459507,-6536.85938346,0.00020348,3]
[368577673,1751213459516,-284.0,0.00020356,2]
[368577674,1751213459525,-200.0,0.0002038,2]
[368577675,1751213459535,-284.0,0.0002041,2]
[368577676,1751213459544,-966.0,0.00020435,2]
[368577677,1751213459553,-654.0,0.00020435,2]
[368577678,1751213459563,-2161.0,0.00020435,2]
[368577679,1751213459573,-406.0,0.00020435,2]
[368577680,1751213459582,-422.825,0.00020435,2]
[368577681,1751213459591,-507.31055669,0.00020547,14]
[368577682,1751213459601,-151.0,0.00020548,2]
[368577683,1751213459610,-151.0,0.00020548,2]
[368577684,1751213459619,-244.81484,0.00020548,2]
[368577685,1751213459628,-6536.85938346,0.00020555,3]
[368577686,1751213459638,-160.0,0.0002056,3]
[368577687,1751213459648,-847.31290578,0.0002056,3]
[368577688,1751213459657,-193.96505387,0.00020579,2]
[368577689,1751213459667,-500.0,0.0002058,2]
[368577690,1751213459676,-500.95948958,0.0002058,2]
[368577691,1751213459685,-500.0,0.0002058,2]
[368577692,1751213459695,-167.42421113,0.0002058,2]
[368577693,1751213459704,-500.0,0.0002058,2]
[368577694,1751213459714,-161.01392693,0.0002058,2]
[368577695,1751213459723,-500.0,0.0002058,2]
[368577696,1751213459733,-150.0,0.0002058,2]
[368577697,1751213459743,-711.68,0.00020588,2]
[368577698,1751213459866,-770.46,0.00020588,2]
[368577699,1751213459876,-3134.69,0.00020588,2]
[368577700,1751213459886,-579.16,0.00020588,2]
[368577701,1751213459899,-460.0,0.00020588,2]
[368577702,1751213459908,-460.0,0.0002059,2]
[368577703,1751213459918,-460.0,0.00020592,2]
[368577704,1751213459927,-4547.62,0.00020592,2]
[368577705,1751213459937,-4813.95,0.00020592,2]
[368577706,1751213459946,-474.95382324,0.00020592,2]
[368577707,1751213459956,-990.53,0.00020592,2]
[368577708,1751213459965,-460.0,0.00020592,2]
[368577709,1751213459975,-460.0,0.00020592,2]
[368577710,1751213459985,-546.86,0.00020592,2]
[368577711,1751213459994,-4925.02,0.00020592,2]
[368577712,1751213460004,-4462.53,0.00020592,2]
[368577713,1751213460013,-4832.15,0.00020592,2]
[368577714,1751213460023,-729.64,0.00020592,2]
[368577715,1751213460033,-460.0,0.00020592,2]
[368577716,1751213460042,-460.0,0.00020592,2]
[368577717,1751213460052,-2653.8,0.00020592,2]
[368577718,1751213460062,-4987.53,0.000206,2]
[368577719,1751213460072,-460.0,0.00020601,2]
[368577720,1751213460081,-460.0,0.00020602,2]
[368577721,1751213460091,-460.0,0.00020602,2]
[368577722,1751213460101,-229.876004,0.00020602,2]
[368577723,1751213460110,-151.0,0.00020602,2]
[368577724,1751213460120,-295.703095,0.00020602,2]
[368577725,1751213460129,-295.703095,0.00020602,2]
[368577726,1751213460139,-707.53,0.00020602,2]
[368577727,1751213460148,-792.53,0.00020602,2]
[368577728,1751213460157,-151.0,0.00020602,2]
[368577729,1751213460167,-2414.73,0.00020602,2]
[368577730,1751213460176,-255.022821,0.00020602,2]
[368577731,1751213460186,-646.3,0.00020602,2]
[368577732,1751213460197,-475.64,0.00020602,2]
[368577733,1751213460207,-460.0,0.00020602,2]
[368577734,1751213460216,-1064.11,0.00020602,2]
[368577735,1751213460226,-460.0,0.00020602,2]
[368577736,1751213460236,-620.0,0.00020602,2]
[368577737,1751213460246,-1257.18,0.00020602,2]
[368577738,1751213460256,-460.0,0.00020602,2]
[368577739,1751213460266,-343.78,0.00020602,2]
[368577740,1751213460276,-997.24,0.00020602,2]
[368577741,1751213460286,-696.71,0.00020602,2]
[368577742,1751213460296,-1514.83,0.00020602,2]
[368577743,1751213460306,-704.72,0.00020602,2]
[368577744,1751213460315,-317.37548453,0.00020603,2]
[368577745,1751213460325,-460.0,0.00020603,2]
[368577746,1751213460335,-1715.34,0.00020603,2]
[368577747,1751213460344,-753.79,0.00020603,2]
[368577748,1751213460355,-594.48,0.00020603,2]
[368577749,1751213460366,-860.14,0.00020603,2]
[368577750,1751213460375,-460.0,0.00020603,2]
[368577751,1751213460385,-1152.83,0.00020603,2]
[368577752,1751213460394,-6011.46,0.00020603,2]
[368577753,1751213460404,-543.66,0.00020603,2]
[368577754,1751213460413,-460.0,0.00020604,2]
[368577755,1751213460423,-460.0,0.00020604,2]
[368577756,1751213460433,-566.23,0.00020607,2]
[368577757,1751213460443,-460.0,0.00020607,2]
[368577758,1751213460452,-460.0,0.00020607,2]
[368577759,1751213460462,-513.98,0.00020607,2]
[368577760,1751213460471,-497.57,0.00020607,2]
[368577761,1751213460480,-460.0,0.00020607,2]
[368577762,1751213460490,-460.0,0.00020607,2]
[368577763,1751213460500,-460.0,0.00020607,2]
[368577764,1751213460509,-638.1,0.00020607,2]
[368577765,1751213460518,-913.1,0.00020607,2]
[368577766,1751213460527,-460.0,0.00020607,2]
[368577767,1751213460537,-472.55,0.00020607,2]
[368577768,1751213460546,-934.56,0.00020607,2]
[368577769,1751213460556,-460.0,0.00020607,2]
[368577770,1751213460565,-994.93,0.00020607,2]
[368577771,1751213460575,-788.47,0.00020607,2]
[368577772,1751213460584,-535.69,0.00020607,2]
[368577773,1751213460594,-720.09,0.00020607,2]
[368577774,1751213460603,-460.0,0.00020607,2]
[368577775,1751213460612,-732.67,0.00020607,2]
[368577776,1751213460622,-460.0,0.00020607,2]
[368577777,1751213460631,-151.0,0.00020608,2]
[368577778,1751213460640,-3943.89,0.00020608,2]
[368577779,1751213460650,-749.97,0.00020608,2]
[368577780,1751213460659,-2273.88,0.00020608,2]
[368577781,1751213460669,-1592.72,0.00020608,2]
[368577782,1751213460678,-1393.05,0.00020608,2]
[368577783,1751213460688,-6858.32,0.00020608,2]
[368577784,1751213460697,-2299.91,0.00020608,2]
[368577785,1751213460707,-1649.67,0.00020608,2]
[368577786,1751213460717,-460.0,0.00020609,2]
[368577787,1751213460726,-460.0,0.00020609,2]
[368577788,1751213460735,-460.0,0.00020609,2]
[368577789,1751213460745,-151.0,0.0002061,2]
[368577790,1751213460755,-151.0,0.0002061,2]
[368577791,1751213460765,-151.0,0.0002061,2]
[368577792,1751213460774,-460.0,0.00020618,2]
[368577793,1751213460784,-151.0,0.00020618,2]
[368577794,1751213460794,-559.454528,0.00020618,2]
[368577795,1751213460804,-559.454528,0.00020618,2]
[368577796,1751213460814,-954.05,0.00020618,2]
[368577797,1751213460824,-460.0,0.00020618,2]
[368577798,1751213460833,-460.0,0.00020618,2]
[368577799,1751213460843,-844.34,0.00020618,2]
[368577800,1751213460853,-1863.26,0.00020618,2]
[368577801,1751213460863,-460.0,0.00020618,2]
[368577802,1751213460873,-1075.67,0.00020618,2]
[368577803,1751213460883,-1321.87,0.00020618,2]
[368577804,1751213460895,-460.0,0.00020618,2]
[368577805,1751213460905,-2266.93,0.00020618,2]
[368577806,1751213460915,-1689.29,0.00020618,2]
[368577807,1751213460924,-460.0,0.00020618,2]
[368577808,1751213460937,-632.62,0.00020618,2]
[368577809,1751213460946,-2416.46,0.0002062,2]
[368577810,1751213460957,-460.0,0.0002062,2]
[368577811,1751213460969,-151.0,0.00020622,2]
[368577812,1751213460982,-151.0,0.00020622,2]
[368577813,1751213460992,-151.0,0.00020622,2]
[368577814,1751213461002,-5000.0,0.00020626,2]
[368577815,1751213461011,-2000.0,0.00020629,2]
[368577816,1751213461022,-151.0,0.00020664,2]
[368577817,1751213461032,-151.0,0.00020664,2]
[368577818,1751213461041,-151.0,0.00020664,2]
[368577819,1751213461051,-201.940201,0.00020664,2]
[368577820,1751213461062,-2500.0,0.00020664,2]
[368577821,1751213461072,-1000.0,0.00020713,2]
[368577822,1751213461082,-412.06989226,0.00020737,2]
[368577823,1751213461091,-500.0,0.00020744,2]